fUSD/lending_fUSD_20241003
["ID","MTS","AMOUNT","RATE_DAILY","PERIOD"]
[339760058,1727955040610,-475.21517826,0.00011,2]
[339760061,1727955040623,-1710.66428866,0.00011,2]
[339760063,1727955040634,-533.1,0.00011,2]
[339760065,1727955040646,-535.49856287,0.00011,2]
[339760068,1727955040668,-703.655,0.00011,2]
[339760070,1727955040679,-94028.51986877,0.00011,2]
[339760072,1727955040691,-2010.28397399,0.00011,2]
[339760075,1727955040702,-4010.853084,0.00011,2]
[339760077,1727955040713,-11154.02902372,0.00011,2]
[339760079,1727955040724,-3107.85901998,0.00011,2]
[339760084,1727955040761,-256.89893274,0.00011,2]
[339760086,1727955040773,-388.52572766,0.00011,2]
[339760088,1727955040784,-2933.56225702,0.00011,2]
[339760090,1727955040795,-315.75302097,0.00011,2]
[339760094,1727955040817,-33886.05425213,0.00011,2]
[339760096,1727955040828,-2514.22633299,0.00011,2]
[339760098,1727955040840,-312.3160075,0.00011,2]
[339760100,1727955040852,-1065.9793395,0.00011,2]
[339760102,1727955040863,-8207.71589643,0.00011,2]
[339760105,1727955040876,-1633.56266826,0.00011,2]
[339760108,1727955040903,-160715.38281738,0.00011,2]
[339760192,1727955042861,-1045.1361953,0.00011,2]
[339760193,1727955042874,-204061.73256152,0.00011,2]
[339760199,1727955045726,-226891.26141214,0.00011,2]
[339760200,1727955045965,-1740.74654837,0.00011,2]
[339760201,1727955045976,-31983.52413414,0.00011,2]
[339760202,1727955045989,-30008.23761682,0.00011,2]
[339760203,1727955046013,-402.04,0.00011,2]
[339760207,1727955240717,699.91,8.545e-05,2]
[339760208,1727955322137,-250.0,0.00010313,2]
[339760209,1727955322161,-181.66,0.00010495,2]
[339760210,1727955322185,-699.91,0.00010809,2]
[339760211,1727955322207,-313.0622,0.000109,2]
[339760212,1727955322230,-500.0,0.00010912,2]
[339760213,1727955322252,-2327.51836632,0.00010999,2]
[339760214,1727955322275,-150.0,0.00010999,2]
[339760215,1727955322298,-1558.29474453,0.00011,2]
[339760216,1727955322323,-29719.55468915,0.00011,2]
[339760217,1727955607325,-750.53,0.00010532,2]
[339760218,1727955607362,-6449.47,0.00010571,2]
[339760220,1727955766483,629.91,8.379e-05,2]
[339760223,1727955914608,1192.94,0.00010155,2]
[339760224,1727955932474,250.0,0.00010209,2]
[339760225,1727956147264,150.0,0.00010145,2]
[339760226,1727956147288,150.0,0.00010145,2]
[339760227,1727956147311,150.0,0.00010145,2]
[339760228,1727956147332,150.0,0.00010145,2]
[339760229,1727956147354,150.0,0.00010145,2]
[339760230,1727956147376,150.0,0.00010145,2]
[339760231,1727956147402,100.0,0.00010145,2]
[339760238,1727956231925,-250.0,0.00010227,2]
[339760239,1727956231935,-222.58899851,0.00010227,2]
[339760240,1727956231947,-261.98,0.00010263,2]
[339760241,1727956231957,-704.02,0.00010298,2]
[339760242,1727956231967,-630.0,0.00010378,2]
[339760243,1727956231980,-428.71,0.00010378,2]
[339760244,1727956231989,-388.04,0.0001044,2]
[339760245,1727956231999,-283.78321687,0.00010643,2]
[339760246,1727956232029,-346.12678313,0.00010643,2]
[339760247,1727956232039,-204.98,0.000108,2]
[339760248,1727956232050,-754.34,0.000108,2]
[339760249,1727956232059,-150.0,0.000108,2]
[339760250,1727956232069,-754.34,0.000108,2]
[339760251,1727956232078,-408.04,0.000108,2]
[339760252,1727956232087,-135.16568767,0.000108,2]
[339760253,1727956232114,-15.28431233,0.000108,2]
[339760254,1727956232123,-150.0,0.000108,2]
[339760255,1727956232133,-150.0,0.000108,2]
[339760256,1727956232143,-240.98239244,0.000108,2]
[339760257,1727956232154,-59.01760756,0.000108,2]
[339760258,1727956232163,-358.47,0.000108,2]
[339760259,1727956232172,-329.47,0.000108,2]
[339760260,1727956232181,-150.0,0.000108,2]
[339760261,1727956232193,-428.71,0.000108,2]
[339760262,1727956232202,-754.34,0.000108,2]
[339760263,1727956232212,-150.0,0.000108,2]
[339760264,1727956232222,-150.0,0.000108,2]
[339760265,1727956232232,-435.56,0.000108,2]
[339760266,1727956232241,-130.26522838,0.000108,2]
[339760267,1727956232253,-19.73477162,0.000108,2]
[339760268,1727956232264,-358.47,0.000108,2]
[339760269,1727956232273,-46.26061921,0.000108,2]
[339760270,1727956232293,-276.38938079,0.000108,2]
[339760271,1727956232305,-428.71,0.000108,2]
[339760272,1727956232314,-150.0,0.000108,2]
[339760273,1727956232324,-512.8343,0.000109,2]
[339760274,1727956232340,-191.8485,0.000109,2]
[339760275,1727956232349,-183.1369,0.000109,2]
[339760276,1727956232358,-2428.17477291,0.000109,2]
[339760277,1727956232369,-373.11672709,0.000109,2]
[339760278,1727956232379,-754.34,0.000109,2]
[339760279,1727956232389,-423.3,0.000109,2]
[339760280,1727956232398,-423.3,0.000109,2]
[339760281,1727956232407,-754.34,0.000109,2]
[339760282,1727956232417,-423.3,0.000109,2]
[339760283,1727956232427,-283.92,0.000109,2]
[339760284,1727956232436,-423.3,0.000109,2]
[339760285,1727956232447,-357.700424,0.000109,2]
[339760286,1727956232457,-1231.81388172,0.000109,2]
[339760287,1727956232466,-500.0,0.00010912,2]
[339760288,1727956232475,-354.978,0.00010932,2]
[339760289,1727956232485,-152.9,0.00010959,2]
[339760290,1727956232494,-158.56,0.00010959,2]
[339760291,1727956232503,-506.35867737,0.00010987,2]
[339760292,1727956232512,-306033.62999325,0.00010988,2]
[339760293,1727956237953,-230.1937,0.00010888,2]
[339760294,1727956237963,-13769.8063,0.00010988,2]
[339760306,1727956240010,-159249.55193818,0.00010988,2]
[339760314,1727956242874,-506.49216703,0.00010988,2]
[339760315,1727956242993,-152790.30224137,0.00010988,2]
[339760316,1727956243002,-51271.43032015,0.00010988,2]
[339760317,1727956243103,-2290.5658182,0.00010988,2]
[339760765,1727956279989,658.29,8.299e-05,2]
[339760766,1727956400780,110469.81492867,0.00010224,2]
[339760767,1727956604657,959.94,0.00010214,2]
[339760768,1727956806534,181.66,0.00010158,2]
[339760769,1727956820992,625.37,8.224e-05,2]
[339760770,1727956867577,261.98,0.00010141,2]
[339760771,1727957026583,250.0,0.0001007,2]
[339760772,1727957087550,250.0,0.00010084,2]
[339760773,1727957244261,255.52523652,0.00010112,2]
[339760774,1727957244285,150.0,0.00010112,2]
[339760775,1727957244314,394.47476348,0.00010112,2]
[339760776,1727957252590,150.0,0.00010112,2]
[339760778,1727957341469,310.43,0.00010131,2]
[339760782,1727957394884,594.1,8.245e-05,2]
[339760791,1727957432011,-200.0,0.00010361,2]
[339760792,1727957432021,-233.31232,0.00010509,2]
[339760793,1727957432118,-360.78768,0.00010509,2]
[339760794,1727957432128,-150.0,0.00010829,2]
[339760795,1727957432138,-3539.5189,0.00010888,2]
[339760796,1727957432147,-640.0,0.00010888,2]
[339760797,1727957432157,-1488.831,0.00010888,2]
[339760798,1727957432166,-3421.9326,0.00010888,2]
[339760799,1727957432176,-5454.33641704,0.00010899,2]
[339760800,1727957432186,-1300.62175975,0.000109,2]
[339760801,1727957432195,-500.0,0.00010912,2]
[339760802,1727957432205,-283.982,0.00010948,2]
[339760803,1727957432215,-172.0,0.00010948,2]
[339760804,1727957432225,-165.02,0.00010959,2]
[339760805,1727957432235,-156.82,0.00010959,2]
[339760806,1727957432244,-299.99,0.00010959,2]
[339760807,1727957432253,-163.77,0.00010959,2]
[339760808,1727957432263,-499.99,0.00010959,2]
[339760809,1727957432272,-249.96823216,0.00010961,2]
[339760810,1727957432281,-34852.5657693,0.00010985,2]
[339760811,1727957432291,-6887.19624174,0.00010985,2]
[339760812,1727957437938,-300.0,0.00010985,2]
[339760813,1727957438076,-867.10360614,0.00010985,2]
[339760814,1727957438088,-448.89210679,0.00010985,2]
[339760815,1727957438099,-692.10835645,0.00010985,2]
[339760816,1727957440010,-3348.07565799,0.00010985,2]
[339760817,1727957440021,-1557.9091999,0.00010985,2]
[339760818,1727957440066,-703.92465506,0.00010985,2]
[339760819,1727957440077,-1562.47988328,0.00010985,2]
[339760820,1727957440118,-21195.15464396,0.00010985,2]
[339760826,1727957443531,-5750.5391324,0.00010985,2]
[339760827,1727957443543,-5588.48944427,0.00010985,2]
[339760832,1727957443672,-21231.49070902,0.00010985,2]
[339760834,1727957443682,-549.0,0.00010988,2]
[339760836,1727957443692,-110527.33512621,0.00010988,2]
[339760839,1727957443715,-6057.37127244,0.00010988,2]
[339760842,1727957446101,-2832.0099074,0.00010988,2]
[339760844,1727957467651,-300.0,0.00010702,2]
[339760845,1727957554219,250.0,0.00010141,2]
[339760846,1727957576999,154.32,0.00010123,2]
[339760847,1727957577054,154.32,0.00010173,2]
[339760848,1727957654667,-7097.37,0.00013,7]
[339760849,1727957659341,150.0,0.00010052,2]
[339760850,1727957659363,100.0,0.00010052,2]
[339760851,1727957725289,-555.52523652,0.00010602,2]
[339760852,1727957725310,-205.94,0.00010667,2]
[339760853,1727957725332,-1286.930136,0.00010702,2]
[339760854,1727957725354,-150.0,0.00010887,2]
[339760855,1727957725375,-32644.60462748,0.00010888,2]
[339760856,1727957729508,-50000.0,0.00010888,2]
[339760857,1727957730610,-50000.0,0.00010888,2]
[339760858,1727957730692,-50000.0,0.00010888,2]
[339760859,1727957731881,-49973.46597252,0.00010888,2]
[339760860,1727957731904,-26.53402748,0.00010888,2]
[339760861,1727957733782,-208.73231144,0.00010888,2]
[339760862,1727957733805,-422.8402042,0.00010892,2]
[339760863,1727957733828,-422.8402042,0.00010896,2]
[339760864,1727957733851,-4908.90277539,0.00010899,2]
[339760865,1727957733873,-422.8402042,0.000109,2]
[339760866,1727957733899,-500.0,0.00010912,2]
[339760867,1727957733923,-4908.90277532,0.00010952,2]
[339760868,1727957733945,-260.3,0.00010959,2]
[339760869,1727957733969,-29999.99,0.00010959,2]
[339760870,1727957733991,-5422.74,0.00010959,2]
[339760871,1727957734014,-331.68886943,0.00010973,2]
[339760872,1727957734036,-500.0,0.00010973,2]
[339760873,1727957734058,-826.9230388,0.00010975,2]
[339760874,1727957734080,-863.29961702,0.00010985,2]
[339760875,1727957743785,-27321.57143588,0.00010985,2]
[339760876,1727957743809,-22678.42856412,0.00010985,2]
[339760877,1727957752302,-10492.23189618,0.00010985,2]
[339760878,1727957752325,-28756.2423839,0.00010985,2]
[339760879,1727957752348,-500.0,0.00010987,2]
[339760880,1727957752371,-500.0,0.00010987,2]
[339760881,1727957752394,-430.96453652,0.00010987,2]
[339760882,1727957752418,-500.0,0.00010987,2]
[339760883,1727957752444,-500.0,0.00010987,2]
[339760884,1727957752467,-500.0,0.00010987,2]
[339760885,1727957752488,-234.48770566,0.00010987,2]
[339760886,1727957752510,-543.0,0.00010988,2]
[339760887,1727957752532,-7043.07347774,0.00010988,2]
[339760888,1727957841255,157.55,0.00010215,2]
[339760889,1727958028873,150.0,0.00010195,2]
[339760890,1727958028894,50.0,0.00010195,2]
[339760891,1727958050885,100.0,8.219e-05,2]
[339760892,1727958050907,150.0,8.219e-05,2]
[339760893,1727958050927,150.0,8.219e-05,2]
[339760894,1727958050948,200.0,8.219e-05,2]
[339760895,1727958050970,45.0,8.219e-05,2]
[339760896,1727958094152,175.76,0.00010083,2]
[339760897,1727958140545,198.07,0.00010068,2]
[339760898,1727958140705,198.07,0.00010119,2]
[339760899,1727958186879,250.0,0.00010068,2]
[339760900,1727958217511,150.0,0.00010066,2]
[339760901,1727958217530,141.29,0.00010066,2]
[339760902,1727958303456,150.0,9.888e-05,2]
[339760903,1727958317112,108.71,0.00010024,2]
[339760904,1727958317139,531.29,0.00010024,2]
[339760905,1727958406760,150.0,0.00010202,2]
[339760906,1727958406779,150.0,0.00010202,2]
[339760907,1727958406799,150.0,0.00010202,2]
[339760908,1727958406821,623.301799,0.00010202,2]
[339760909,1727958450081,150.0,9.996e-05,2]
[339760927,1727958568196,150.0,8.219e-05,2]
[339760928,1727958568217,150.0,8.219e-05,2]
[339760929,1727958568238,150.0,8.219e-05,2]
[339760930,1727958568258,150.0,8.219e-05,2]
[339760931,1727958568279,84.28,8.219e-05,2]
[339760972,1727958632555,-0.99440334,0.00010254,2]
[339760980,1727958634280,150.0,9.996e-05,2]
[339760981,1727958634305,150.0,9.996e-05,2]
[339760982,1727958634330,150.0,9.996e-05,2]
[339760983,1727958634354,44.61,9.996e-05,2]
[339760984,1727958638148,-149.00559666,0.00010254,2]
[339760985,1727958638158,-182.5995416,0.0001042,2]
[339760986,1727958638167,-684.28,0.00010476,2]
[339760987,1727958638177,-372.8196,0.0001052,2]
[339760988,1727958638186,-360.0,0.00010522,2]
[339760989,1727958638195,-150.0,0.0001062,2]
[339760990,1727958638204,-300.0,0.00010687,2]
[339760991,1727958638213,-150.0,0.00010687,2]
[339760992,1727958638222,-162.4233,0.00010688,2]
[339760993,1727958638232,-1422.4903,0.00010688,2]
[339760994,1727958638243,-1247.91426174,0.00010688,2]
[339760995,1727958638258,-1689.74473826,0.00010688,2]
[339760996,1727958638268,-1461.4582,0.00010688,2]
[339760997,1727958638277,-4017.4951,0.00010688,2]
[339760998,1727958638286,-2500.0,0.00010688,2]
[339760999,1727958638296,-26135.4173,0.00010788,2]
[339761000,1727958638305,-230407.4392,0.00010788,2]
[339761001,1727958638314,-1000.0,0.00010788,2]
[339761002,1727958638323,-2491.72,0.00010788,2]
[339761003,1727958638332,-499.99,0.00010788,2]
[339761004,1727958638342,-442.53,0.00010788,2]
[339761005,1727958638351,-428.71,0.000108,2]
[339761006,1727958638361,-150.0,0.000108,2]
[339761007,1727958638371,-358.47,0.000108,2]
[339761008,1727958638380,-150.0,0.000108,2]
[339761009,1727958638390,-428.71,0.000108,2]
[339761010,1727958638399,-358.47,0.000108,2]
[339761011,1727958638408,-150.0,0.000108,2]
[339761012,1727958638417,-309.57,0.000108,2]
[339761013,1727958638426,-754.34,0.000108,2]
[339761014,1727958638436,-306.9,0.000108,2]
[339761015,1727958638445,-811.53,0.000108,2]
[339761016,1727958638454,-300.0,0.000108,2]
[339761017,1727958638534,-356.07,0.000108,2]
[339761018,1727958638544,-1636.9819,0.00010888,2]
[339761019,1727958638553,-35155.174,0.00010888,2]
[339761020,1727958638563,-5223.062,0.00010888,2]
[339761021,1727958638572,-29999.99,0.00010888,2]
[339761022,1727958638581,-790.19,0.00010888,2]
[339761023,1727958638590,-159.53480384,0.00010888,2]
[339761024,1727958638599,-159.42797736,0.00010892,2]
[339761025,1727958638608,-7584.61135133,0.00010899,2]
[339761026,1727958638617,-7584.61135128,0.00010899,2]
[339761027,1727958638626,-150.0,0.000109,2]
[339761028,1727958638635,-150.0,0.000109,2]
[339761029,1727958638644,-150.0,0.000109,2]
[339761030,1727958638653,-150.0,0.000109,2]
[339761031,1727958638662,-159.42797736,0.000109,2]
[339761032,1727958638671,-358.47,0.000109,2]
[339761033,1727958638680,-150.0,0.000109,2]
[339761034,1727958638689,-150.0,0.000109,2]
[339761035,1727958638698,-428.71,0.000109,2]
[339761036,1727958638707,-150.0,0.000109,2]
[339761037,1727958638718,-876.07,0.000109,2]
[339761038,1727958638727,-1042.0,0.000109,2]
[339761039,1727958638736,-154.23122312,0.000109,2]
[339761040,1727958638746,-160.078,0.00010926,2]
[339761041,1727958638757,-275.103,0.00010926,2]
[339761042,1727958638766,-169.65,0.00010959,2]
[339761043,1727958638776,-167.09,0.00010959,2]
[339761044,1727958638784,-172.85,0.00010959,2]
[339761045,1727958638795,-1253.74,0.00010959,2]
[339761046,1727958638805,-600.45,0.00010959,2]
[339761047,1727958638814,-500.0,0.00010973,2]
[339761048,1727958638823,-4648.71970651,0.00010975,2]
[339761049,1727958638834,-150.0,0.00010986,2]
[339761050,1727958638844,-234.23339381,0.00010987,2]
[339761051,1727958638855,-270.10717073,0.00010987,2]
[339761052,1727958638867,-151.58445946,0.00010987,2]
[339761053,1727958638875,-615.0,0.00010988,2]
[339761054,1727958638884,-617986.85113962,0.00010988,2]
[339761055,1727958638893,-2545066.22378391,0.00010988,2]
[339761056,1727958638902,-1659.82943714,0.00010999,2]
[339761057,1727958638911,-1441.95521981,0.00011,2]
[339761058,1727958638919,-543.87473494,0.00011,2]
[339761059,1727958638928,-1162552.17247258,0.00011,2]
[339761060,1727958638947,-25157.72043808,0.00011,2]
[339761061,1727958639132,-448.79,0.00011,2]
[339761062,1727958639175,-3933.56699668,0.00011,2]
[339761063,1727958640142,-20453.58063277,0.00011,2]
[339761064,1727958640384,-54764.66971007,0.00011,2]
[339761068,1727958643251,-154.23122312,0.000109,2]
[339761069,1727958643261,-849.662254,0.00011,2]
[339761070,1727958643415,-1115.05877996,0.00011,2]
[339761071,1727958643470,-302141.06937039,0.00011,2]
[339761072,1727958643583,-7864.076,0.00011,2]
[339761077,1727958644670,-448.79,0.00010522,2]
[339761078,1727958645288,-300.0,0.00010522,2]
[339761096,1727958646255,-4649.77850634,0.00010522,2]
[339761097,1727958646265,-300.0,0.00010665,2]
[339761099,1727958646275,-154.23122312,0.000109,2]
[339761101,1727958646285,-32188.03461667,0.00011,2]
[339761103,1727958646299,-66224.50994559,0.00011,2]
[339761105,1727958646313,-25096.90873033,0.00011,2]
[339761107,1727958646327,-13110.61360553,0.00011,2]
[339761109,1727958646340,-38491.20539189,0.00011,2]
[339761110,1727958646354,-56912.5824117,0.00011,2]
[339761113,1727958646368,-191180.09589605,0.00011,2]
[339761114,1727958646380,-3275.25,0.00011,2]
[339761115,1727958646396,-151395.47399998,0.00011,2]
[339761175,1727958669506,-689.83,0.000125,5]
[339761176,1727958669536,-150.90335414,0.000128,5]
[339761177,1727958669561,-1358.0,0.0001283,6]
[339761178,1727958669584,-1238.0,0.0001287,6]
[339761179,1727958669620,-1088.0,0.00013,5]
[339761180,1727958713019,-502.0,0.00014,10]
[339761181,1727958732148,163.69,9.996e-05,2]
[339761182,1727958732368,163.69,0.00010002,2]
[339761183,1727958732796,163.69,0.00010008,2]
[339761184,1727958733024,163.69,0.00010014,2]
[339761185,1727958733242,163.69,0.00010021,2]
[339761186,1727958733493,163.69,0.00010027,2]
[339761187,1727958733702,163.69,0.00010033,2]
[339761188,1727958733963,163.69,0.00010039,2]
[339761189,1727958734222,163.69,0.00010046,2]
[339761194,1727958766568,-1000.0,0.000127,4]
[339761195,1727958766615,-7573.26664586,0.00013,4]
[339761196,1727958806973,1248.05002548,0.00013001,15]
[339761198,1727959010560,750.0,0.00010156,2]
[339761199,1727959197783,150.0,8.377e-05,2]
[339761200,1727959197803,150.0,8.377e-05,2]
[339761201,1727959197823,150.0,8.377e-05,2]
[339761202,1727959197845,150.0,8.377e-05,2]
[339761203,1727959197868,79.74,8.377e-05,2]
[339761204,1727959476729,-1000.0,0.00010257,2]
[339761205,1727959476752,-250.0,0.00010274,2]
[339761206,1727959476773,-150.0,0.00010274,2]
[339761207,1727959476795,-291.29,0.00010289,2]
[339761208,1727959476818,-298.76,0.00010318,2]
[339761209,1727959477268,200.0,2.985e-05,2]
[339761221,1727959525725,150.11042925,9.888e-05,2]
[339761222,1727959537502,150.60885511,9.888e-05,2]
[339761241,1727959832593,-157.55,0.00010356,2]
[339761242,1727959832602,-1405.5542954,0.000106,2]
[339761275,1727959838317,-3189.4457046,0.000106,2]
[339761276,1727959838327,-201.58207066,0.00010641,2]
[339761277,1727959838359,-478.15792934,0.00010641,2]
[339761278,1727959838369,-150.0,0.00010877,2]
[339761279,1727959838378,-300.0,0.00010899,2]
[339761280,1727959838387,-4850.8076,0.000109,2]
[339761281,1727959838396,-2500.0,0.000109,2]
[339761282,1727959838405,-6067.68908106,0.000109,2]
[339761283,1727959838414,-2823.70113597,0.000109,2]
[339761284,1727959838423,-500.0,0.00010912,2]
[339761285,1727959838432,-167.09,0.00010959,2]
[339761286,1727959838444,-414.95735928,0.00010999,2]
[339761287,1727959838453,-284.433,0.00010999,2]
[339761288,1727959838463,-500.0,0.00010999,2]
[339761289,1727959838472,-182.55584379,0.00010999,2]
[339761290,1727959838481,-160.07912929,0.00010999,2]
[339761291,1727959838490,-608.0,0.00011,2]
[339761292,1727959838500,-31123.845,0.00011,2]
[339761293,1727959838508,-573522.15856914,0.00011,2]
[339761294,1727959838517,-321268.92098559,0.00011,2]
[339761295,1727959838529,-1147347.01545081,0.00011,2]
[339761299,1727959838694,-150.0,0.00011,2]
[339761300,1727959838705,-2045.692931,0.00011,2]
[339761314,1727959840805,-20317.11907507,0.00011,2]
[339761325,1727959843728,-543.0,0.00011,2]
[339761326,1727959843738,-301598.06937039,0.00011,2]
[339761334,1727959846856,-77.98465627,0.00011,2]
[339761335,1727959854380,11512.0,0.000102,5]
[339761336,1727959900444,-150.0,0.00010286,2]
[339761337,1727959977495,643.42,8.368e-05,2]
[339761338,1727960254025,-25.76,0.00010286,2]
[339761339,1727960254049,-423.03,0.00010334,2]
[339761340,1727960254513,-439.3,0.00010334,2]
[339761341,1727960285562,-300.0,0.00010313,2]
[339761342,1727960528380,3000.0,0.00013001,15]
[339761343,1727960546913,-150.0,0.00010286,2]
[339761344,1727960546934,-150.0,0.00010296,2]
[339761345,1727960546956,-150.0,0.00010306,2]
[339761346,1727960546978,-248.33,0.00010313,2]
[339761347,1727960546998,-1716.94468805,0.00010317,2]
[339761348,1727960547021,-150.0,0.00010317,2]
[339761349,1727960547043,-150.0,0.00010327,2]
[339761350,1727960547065,-137.67,0.00010334,2]
[339761351,1727960547087,-150.0,0.00010337,2]
[339761352,1727960547108,-250.0,0.00010571,2]
[339761353,1727960547127,-291.29,0.00010631,2]
[339761354,1727960547148,-643.42,0.00010632,2]
[339761355,1727960547168,-150.0,0.00010899,2]
[339761356,1727960547190,-159.53480383,0.000109,2]
[339761357,1727960547210,-2003.2338,0.000109,2]
[339761358,1727960547231,-820.148,0.000109,2]
[339761359,1727960547251,-155.39592271,0.000109,2]
[339761360,1727960547271,-1882.46742398,0.000109,2]
[339761361,1727960547290,-500.0,0.00010912,2]
[339761362,1727960547312,-165.66,0.00010959,2]
[339761363,1727960547337,-166.6,0.00010959,2]
[339761364,1727960547357,-247.17,0.00010959,2]
[339761365,1727960547379,-205.98,0.00010959,2]
[339761366,1727960547399,-171.65,0.00010959,2]
[339761367,1727960547420,-858.26,0.00010959,2]
[339761368,1727960547440,-169.65,0.00010959,2]
[339761369,1727960547468,-500.0,0.00010973,2]
[339761370,1727960547488,-500.0,0.00010973,2]
[339761371,1727960547509,-622.43603892,0.00010999,2]
[339761372,1727960547528,-302.95,0.00010999,2]
[339761373,1727960547552,-500.0,0.00010999,2]
[339761374,1727960547572,-190.81686621,0.00010999,2]
[339761375,1727960547592,-516.85873265,0.00010999,2]
[339761376,1727960547612,-597.0,0.00011,2]
[339761377,1727960547796,-686358.24028161,0.00011,2]
[339761378,1727960547818,-5994.77104444,0.00011,2]
[339761379,1727960547840,-375.0,0.00011,2]
[339761380,1727960547864,-1791698.5223976,0.00011,2]
[339761381,1727960577410,579.07,8.796e-05,2]
[339761382,1727960605992,1265.066,0.00010186,2]
[339761385,1727960833265,200.0,0.00010065,2]
[339761386,1727960861493,239.0,0.00010065,2]
[339761391,1727961031520,-250.0,0.00010248,2]
[339761392,1727961031530,-329.83281498,0.00010565,2]
[339761393,1727961031540,-184.29473751,0.00010665,2]
[339761400,1727961037462,-1046.25519874,0.00010665,2]
[339761401,1727961037471,-375.11,0.00010706,2]
[339761402,1727961037481,-1992.49124828,0.00010899,2]
[339761403,1727961037493,-3740.96146596,0.00010899,2]
[339761404,1727961037502,-291.86956136,0.000109,2]
[339761405,1727961037525,-11820.67703864,0.000109,2]
[339761406,1727961037534,-34216.70811491,0.000109,2]
[339761407,1727961037546,-12453.78338509,0.000109,2]
[339761408,1727961037555,-9949.53671217,0.000109,2]
[339761409,1727961037566,-749.86877271,0.000109,2]
[339761410,1727961037674,-1379.86572107,0.000109,2]
[339761411,1727961037694,-4855.24699405,0.000109,2]
[339761412,1727961037704,-1000.0,0.000109,2]
[339761413,1727961037713,-533.0938,0.000109,2]
[339761414,1727961037724,-174.79455141,0.000109,2]
[339761415,1727961037733,-619.50178666,0.000109,2]
[339761416,1727961037742,-500.0,0.00010912,2]
[339761418,1727961037752,-167.09,0.00010959,2]
[339761419,1727961037763,-154.33,0.00010959,2]
[339761421,1727961037772,-415.89700425,0.00010973,2]
[339761422,1727961037781,-199.15185174,0.0001099,2]
[339761423,1727961037791,-694.07638203,0.00010997,2]
[339761424,1727961037800,-333561.00472011,0.00010997,2]
[339761425,1727961037809,-5552.61105624,0.00010997,2]
[339761426,1727961037818,-159.227,0.00010999,2]
[339761427,1727961037827,-13507.0,0.00010999,2]
[339761428,1727961037836,-1148.0,0.00010999,2]
[339761429,1727961037845,-5874.0,0.00010999,2]
[339761430,1727961037854,-361.60822536,0.00010999,2]
[339761431,1727961037864,-534.0,0.00011,2]
[339761432,1727961037874,-387921.68047154,0.00011,2]
[339761433,1727961037898,-463.4202856,0.00011,2]
[339761434,1727961037960,-2570.50200004,0.00011,2]
[339761435,1727961037971,-2425.64,0.00011,2]
[339761437,1727961039589,-3170.01195793,0.00011,2]
[339761438,1727961039601,-6757.96750055,0.00011,2]
[339761439,1727961039612,-27089.17785513,0.00011,2]
[339761440,1727961039623,-1518.24201,0.00011,2]
[339761441,1727961039636,-1363.68834929,0.00011,2]
[339761442,1727961039652,-2023.404,0.00011,2]
[339761443,1727961039663,-1911.35674506,0.00011,2]
[339761472,1727961042548,-599.0,0.00010999,2]
[339761473,1727961042558,-901.0,0.00011,2]
[339761474,1727961042661,-647.03681964,0.00011,2]
[339761475,1727961042673,-352.96318036,0.00011,2]
[339761476,1727961042723,-125422.30648109,0.00011,2]
[339761477,1727961042732,-176718.7628893,0.00011,2]